bitfinex-derivatives/quotes_SOLF0:USTF0_20250609
["timestamp","ask_amount","ask_price","bid_price","bid_amount"]
[1749483559908,4.60401413,154.76,154.74,0.04236487]
[1749483560117,0.04458148,154.77,154.74,0.04236487]
[1749483560416,4.60401413,154.76,154.75,6.4587]
[1749483560617,0.04458148,154.77,154.75,6.4587]
[1749483561207,0.04458148,154.77,154.74,0.04236487]
[1749483561916,0.04458148,154.77,154.75,6.4589]
[1749483563623,0.04458148,154.77,154.76,6.4585]
[1749483564125,4.64907153,154.77,154.76,6.4585]
[1749483564423,0.04458148,154.77,154.76,6.4585]
[1749483564623,0.04458148,154.77,154.76,39.9185]
[1749483566124,6.21484822,154.83,154.79,6.4572]
[1749483566313,9.83087345,154.82,154.79,6.4572]
[1749483566515,5.22643651,154.81,154.79,6.4572]
[1749483566714,4.60443673,154.8,154.79,6.4572]
[1749483566916,12.67044822,154.83,154.79,6.4572]
[1749483567114,9.8221765,154.82,154.79,6.50503908]
[1749483567320,4.59547078,154.81,154.79,0.04793908]
[1749483567518,5.22797794,154.82,154.79,0.04793908]
[1749483567726,4.59471257,154.81,154.8,6.4568]
[1749483568123,12.71426226,154.83,154.8,6.4568]
[1749483568322,5.22706209,154.82,154.8,6.4568]
[1749483568626,12.71426226,154.83,154.8,6.4568]
[1749483568824,5.22682397,154.82,154.8,6.4568]
[1749483569025,4.59471257,154.81,154.8,6.4568]
[1749483569323,5.22682397,154.82,154.79,6.50493908]
[1749483569530,4.59471246,154.81,154.79,6.50493908]
[1749483569728,5.22375812,154.82,154.79,6.50493908]
[1749483569925,12.71426226,154.83,154.79,6.50493908]
[1749483570127,5.22375812,154.82,154.79,6.50493908]
[1749483570324,12.71426226,154.83,154.79,6.50493908]
[1749483570526,5.22481479,154.82,154.79,6.50493908]
[1749483570727,4.60516775,154.81,154.79,6.50493908]
[1749483571022,5.23584521,154.82,154.79,6.50493908]
[1749483571225,4.60845118,154.81,154.79,6.50493908]
[1749483571524,5.23652761,154.82,154.79,6.50493908]
[1749483571726,6.4561,154.82,154.79,6.50493908]
[1749483571932,4.60845118,154.81,154.79,6.50493908]
[1749483572126,6.4561,154.82,154.79,6.50493908]
[1749483574045,6.4565,154.81,154.79,0.04793908]
[1749483576538,6.456,154.82,154.79,6.50493908]
[1749483576740,0.04381404,154.83,154.79,0.04793908]
[1749483577036,4.61794811,154.82,154.8,6.4564]
[1749483577244,0.04381404,154.83,154.8,39.35484822]
[1749483577542,0.04381404,154.83,154.82,6.21484822]
[1749483577738,5.23434389,154.89,154.82,6.21484822]
[1749483578041,5.23434389,154.89,154.84,6.21484822]
[1749483578241,11.07556906,154.88,154.85,33.14]
[1749483578442,6.21484822,154.86,154.82,33.14]
[1749483578630,6.26438728,154.86,154.82,33.18790213]
[1749483578829,6.4553,154.84,154.82,33.18790213]
[1749483579533,6.26438728,154.86,154.82,33.18790213]
[1749483579843,4.62288421,154.85,154.82,33.18790213]
[1749483580139,11.07838421,154.84,154.82,33.18790213]
[1749483580339,6.26438728,154.86,154.82,33.18790213]
[1749483580541,4.62288411,154.85,154.82,33.18790213]
[1749483580736,6.4556,154.83,154.82,33.18790213]
[1749483583444,11.10239272,154.83,154.82,33.18790213]
[1749483583838,6.4556,154.83,154.82,33.18790213]
[1749483584637,11.1024059,154.83,154.82,33.18790213]
[1749483584841,6.4556,154.83,154.82,33.18790213]
[1749483585243,11.102406,154.83,154.82,33.18790213]
[1749483585445,6.4556,154.83,154.82,33.18790213]
[1749483585648,11.10278124,154.83,154.82,33.18790213]
[1749483586144,6.4556,154.83,154.82,33.18790213]
[1749483586834,11.10714216,154.83,154.82,33.18790213]
[1749483587034,6.4556,154.83,154.82,33.18790213]
[1749483587437,11.10663596,154.83,154.82,33.18790213]
[1749483587644,11.10216883,154.83,154.82,33.18790213]
[1749483588051,6.4566,154.81,154.79,33.14]
[1749483588238,6.21484822,154.82,154.78,33.14]
[1749483588439,4.64909751,154.81,154.78,33.14]
[1749483588637,6.4571,154.8,154.78,33.14]
[1749483588840,6.21484822,154.82,154.78,39.5973]
[1749483589035,4.64910386,154.81,154.78,33.18623585]
[1749483589247,0.04687777,154.82,154.78,33.18623585]
[1749483589447,0.04687777,154.82,154.8,6.4566]
[1749483589648,6.50287777,154.82,154.8,6.4566]
[1749483589948,0.04687777,154.82,154.8,6.4566]
[1749483591449,6.50287777,154.82,154.8,6.4566]
[1749483592146,0.04687777,154.82,154.81,6.4564]
[1749483592548,4.69298162,154.82,154.81,6.4564]
[1749483592749,4.6929816,154.82,154.81,6.4564]
[1749483593148,4.69298222,154.82,154.81,6.4564]
[1749483593348,4.68640842,154.82,154.81,6.4564]
[1749483593549,0.04687777,154.82,154.81,6.4564]
[1749483594144,4.68192759,154.82,154.81,6.4564]
[1749483594347,0.04687777,154.82,154.81,6.4564]
[1749483597650,0.04687777,154.82,154.81,12.67124822]
[1749483597845,7.777e-05,154.82,154.81,12.67124822]
[1749483598351,7.777e-05,154.82,154.81,6.4564]
[1749483598653,7.777e-05,154.82,154.81,12.67124822]
[1749483602254,7.777e-05,154.82,154.81,6.4564]
[1749483610766,4.6542522,154.86,154.85,6.4547]
[1749483611067,5.25041572,154.88,154.85,32.92]
[1749483611261,4.65423088,154.87,154.85,32.92]
[1749483611471,5.249476,154.88,154.86,6.454]
[1749483611762,9.90460537,154.87,154.85,32.96198557]
[1749483612066,6.4537,154.88,154.85,32.96198557]
[1749483612361,6.4537,154.88,154.85,39.41638557]
[1749483612567,4.65884778,154.87,154.85,39.41638557]
[1749483612762,6.4537,154.88,154.85,39.41638557]
[1749483612966,4.65884315,154.87,154.85,39.41638557]
[1749483613169,6.4537,154.88,154.85,39.41638557]
[1749483613366,4.65581222,154.87,154.85,39.41638557]
[1749483613668,6.5015988,154.89,154.86,6.4541]
[1749483613867,5.24984567,154.88,154.86,6.4541]
[1749483614069,0.0483988,154.89,154.85,32.96198557]
[1749483614269,9.9084154,154.88,154.85,32.96198557]
[1749483614464,0.0483988,154.89,154.85,32.96198557]
[1749483614770,9.90659195,154.88,154.86,6.4541]
[1749483614963,0.0483988,154.89,154.86,6.4541]
[1749483615157,9.90658102,154.88,154.86,6.4541]
[1749483615367,0.0483988,154.89,154.86,6.4541]
[1749483615568,9.92580252,154.88,154.86,6.4541]
[1749483615771,0.0483988,154.89,154.86,6.4541]
[1749483615969,5.25064326,154.88,154.86,6.4541]
[1749483616168,6.5015988,154.89,154.87,6.4538]
[1749483616468,5.25068034,154.88,154.85,32.96198557]
[1749483616669,6.5015988,154.89,154.86,6.4541]
[1749483616866,5.25068034,154.88,154.86,6.4541]
[1749483617171,6.5015988,154.89,154.86,6.4541]
[1749483617371,5.25017222,154.88,154.86,6.4541]
[1749483617571,6.5015988,154.89,154.86,6.4541]
[1749483617767,5.25038855,154.88,154.87,6.4539]
[1749483617968,0.0483988,154.89,154.85,39.17683379]
[1749483618374,0.0483988,154.89,154.87,6.4537]
[1749483618574,5.29760309,154.89,154.87,6.4537]
[1749483618767,0.0483988,154.89,154.88,6.4535]
[1749483619775,0.0483988,154.89,154.87,6.4537]
[1749483620170,6.26324702,154.89,154.85,32.96198557]
[1749483620475,12.71644702,154.89,154.86,6.454]
[1749483620673,6.26324702,154.89,154.86,6.454]
[1749483621273,5.25350173,154.88,154.86,6.454]
[1749483621473,6.26324702,154.89,154.86,6.454]
[1749483621674,11.7073504,154.88,154.86,6.454]
[1749483622070,6.26324702,154.89,154.87,6.4539]
[1749483622273,0.0483988,154.89,154.85,32.96198557]
[1749483622577,0.0483988,154.89,154.85,39.17683379]
[1749483623379,0.0483988,154.89,154.88,6.4535]
[1749483628577,6.26324702,154.89,154.87,6.4538]
[1749483629382,12.71654702,154.89,154.87,6.4538]
[1749483632192,6.26324702,154.89,154.87,6.4538]
[1749483633682,12.71634702,154.89,154.87,6.4538]
[1749483633885,12.71634702,154.89,154.86,6.4541]
[1749483635789,6.26324702,154.89,154.86,6.4541]
[1749483636378,11.5206895,154.89,154.86,6.4541]
[1749483636778,6.26324702,154.89,154.86,6.4541]
[1749483637185,17.97395513,154.89,154.85,39.41638557]
[1749483637385,12.71644702,154.89,154.85,32.96198557]
[1749483638087,12.71644702,154.89,154.86,6.4543]
[1749483638889,6.4538,154.88,154.85,32.96198557]
[1749483639091,6.26324702,154.89,154.85,32.96198557]
[1749483639290,5.26035929,154.88,154.85,32.96198557]
[1749483639589,9.91637406,154.87,154.85,39.41648557]
[1749483639790,6.26324702,154.89,154.85,39.41648557]
[1749483639987,9.91457643,154.88,154.85,32.96198557]
[1749483640192,16.14962704,154.87,154.85,32.96198557]
[1749483640495,4.67621254,154.86,154.85,0.04198557]
[1749483640795,12.66894822,154.87,154.85,0.04198557]
[1749483640997,4.67595307,154.86,154.85,0.04198557]
[1749483641496,4.6624857,154.86,154.85,0.04198557]
[1749483641691,12.66894822,154.87,154.85,0.04198557]
[1749483641898,6.4543,154.86,154.85,0.04198557]
[1749483642298,16.37699781,154.86,154.85,0.04198557]
[1749483642796,9.91813295,154.86,154.85,0.04198557]
[1749483642987,4.65793834,154.86,154.85,0.04198557]
[1749483643395,6.21484822,154.87,154.85,0.04198557]
[1749483643598,4.6579325,154.86,154.85,0.04198557]
[1749483643798,5.26245779,154.88,154.85,0.04198557]
[1749483644101,14.0483988,154.89,154.87,6.4537]
[1749483644397,9.9201255,154.88,154.87,6.4537]
[1749483644793,4.65789855,154.88,154.87,6.4537]
[1749483644993,4.65789972,154.88,154.87,6.4537]
[1749483645291,9.91466075,154.88,154.87,6.4537]
[1749483645690,5.25676048,154.88,154.87,6.4537]
[1749483645886,9.91466133,154.88,154.87,6.4537]
[1749483646086,5.25676048,154.88,154.87,6.4537]
[1749483646396,9.9147875,154.88,154.86,6.4541]
[1749483646695,4.65802702,154.87,154.86,6.4541]
[1749483647290,4.65802644,154.87,154.86,6.4541]
[1749483647494,14.0483988,154.89,154.86,6.4541]
[1749483647791,4.65802644,154.88,154.87,6.4539]
[1749483648195,14.0483988,154.89,154.87,6.4539]
[1749483648393,4.6624933,154.88,154.87,6.4539]
[1749483648897,4.66250257,154.88,154.87,6.4539]
[1749483649092,4.66250258,154.88,154.87,6.4539]
[1749483650101,4.6598526,154.88,154.87,6.4539]
[1749483650296,4.65985605,154.88,154.85,32.82198557]
[1749483650491,4.65984556,154.87,154.85,32.82198557]
[1749483650792,0.0483988,154.89,154.85,32.82198557]
[1749483650996,9.92260071,154.88,154.85,32.82198557]
[1749483651292,4.65984557,154.87,154.85,32.82198557]
[1749483651493,4.65984557,154.86,154.85,32.82198557]
[1749483651797,4.66121609,154.86,154.85,39.27658557]
[1749483651998,4.66570754,154.86,154.85,32.82198557]
[1749483652298,6.21484822,154.88,154.85,32.82198557]
[1749483652494,9.92985676,154.87,154.85,32.82198557]
[1749483652694,4.66572161,154.86,154.85,32.82198557]
[1749483653597,6.454,154.87,154.85,32.82198557]
[1749483653991,4.66711261,154.86,154.85,32.82198557]
[1749483654190,11.71951106,154.86,154.85,32.82198557]
[1749483654388,11.71951106,154.86,154.85,0.04198557]
[1749483654592,9.93235325,154.86,154.85,0.04198557]
[1749483654795,5.26521106,154.86,154.85,0.04198557]
[1749483654999,9.9323454,154.86,154.85,0.04198557]
[1749483655201,9.93234585,154.86,154.85,0.04198557]
[1749483655404,9.93234641,154.86,154.85,0.04198557]
[1749483655701,9.93234642,154.86,154.85,0.04198557]
[1749483655893,9.93234643,154.86,154.85,0.04198557]
[1749483656092,9.93234862,154.86,154.85,0.04198557]
[1749483656293,5.26521106,154.86,154.85,0.04198557]
[1749483656504,9.93234464,154.86,154.85,0.04198557]
[1749483656801,9.91887793,154.86,154.85,0.04198557]
[1749483657300,9.9188774,154.86,154.85,0.04198557]
[1749483657606,5.26521106,154.86,154.85,0.04198557]
[1749483657899,9.91786694,154.86,154.85,0.04198557]
[1749483658800,9.91786218,154.86,154.85,0.04198557]
[1749483659008,5.26521106,154.86,154.85,0.04198557]
[1749483659211,9.91785981,154.86,154.85,0.04198557]
[1749483659404,5.26521106,154.86,154.85,6.49668557]
[1749483659603,4.6526209,154.86,154.85,0.04198557]
[1749483659802,4.65260548,154.86,154.85,0.04198557]
[1749483660300,4.65222283,154.86,154.85,6.49668557]
[1749483660501,4.65222284,154.86,154.85,0.04198557]
[1749483660899,4.65222284,154.86,154.85,6.49668557]
[1749483661105,4.65222293,154.86,154.85,6.49668557]
[1749483661811,4.65256453,154.86,154.85,0.04198557]
[1749483662009,0.0483988,154.89,154.85,0.04198557]
[1749483662202,0.0483988,154.89,154.87,6.4535]
[1749483662401,4.65703396,154.88,154.87,6.4535]
[1749483662599,4.65703047,154.88,154.87,6.4535]
[1749483662809,4.65703046,154.88,154.87,6.4535]
[1749483663004,0.0483988,154.89,154.88,6.4535]
[1749483663509,4.70540939,154.89,154.88,6.4535]
[1749483663901,4.70540939,154.89,154.88,12.66834822]
[1749483663902,0.0483988,154.89,154.88,12.66834822]
[1749483664104,14.0,154.94,154.92,6.4515]
[1749483664309,5.24949521,154.93,154.92,6.4515]
[1749483664508,9.90875502,154.93,154.92,6.4515]
[1749483664706,9.90875151,154.93,154.92,6.4515]
[1749483665008,5.24949521,154.93,154.92,6.4515]
[1749483665197,9.90874702,154.93,154.91,6.49481198]
[1749483665402,9.90875638,154.92,154.91,6.49481198]
[1749483665808,5.24949521,154.92,154.91,6.49481198]
[1749483666010,9.9087517,154.92,154.91,6.49481198]
[1749483666212,0.04892713,154.94,154.91,0.04271198]
[1749483666411,9.92290526,154.93,154.91,0.04271198]
[1749483666615,9.92290526,154.92,154.91,0.04271198]
[1749483666801,5.26365345,154.92,154.91,0.04271198]
[1749483667306,9.9544689,154.92,154.91,0.04271198]
[1749483667506,4.69081648,154.92,154.91,6.49491198]
[1749483667808,4.69081906,154.92,154.91,6.49491198]
[1749483668205,9.95383032,154.92,154.91,6.49491198]
[1749483668411,4.69082317,154.92,154.91,6.49491198]
[1749483668709,4.69082316,154.92,154.91,6.49491198]
[1749483668909,4.69081904,154.92,154.91,6.49491198]
[1749483669109,4.69082316,154.92,154.91,6.49491198]
[1749483669305,0.04892713,154.94,154.92,6.4517]
[1749483669508,5.26154875,154.93,154.92,6.4517]
[1749483670003,0.04892713,154.94,154.92,6.4518]
[1749483670201,0.04892713,154.94,154.91,0.04271198]
[1749483670202,16.16656643,154.93,154.91,0.04271198]
[1749483670505,6.21484822,154.93,154.91,0.04271198]
[1749483671102,9.96114067,154.92,154.91,0.04271198]
[1749483671420,9.96114695,154.92,154.91,0.04271198]
[1749483672111,5.27093892,154.92,154.91,0.04271198]
[1749483672415,9.96562775,154.92,154.91,0.04271198]
[1749483672614,5.27093892,154.92,154.91,0.04271198]
[1749483672810,2.29992713,154.94,154.91,0.04271198]
[1749483673115,5.27005534,154.93,154.91,0.04271198]
[1749483673307,4.69541874,154.92,154.91,6.49491198]
[1749483673509,4.69541874,154.92,154.91,0.04271198]
[1749483673711,0.04892713,154.94,154.91,0.04271198]
[1749483674013,0.04892713,154.94,154.93,6.4514]
[1749483674308,4.74431494,154.94,154.93,6.4514]
[1749483675009,4.74747143,154.94,154.93,6.4514]
[1749483675206,4.74747144,154.94,154.93,6.4514]
[1749483675715,4.74747144,154.94,154.92,6.4516]
[1749483676014,0.04892713,154.94,154.91,0.04271198]
[1749483676413,0.04892713,154.94,154.91,6.49461198]
[1749483677518,0.04892713,154.94,154.92,6.4518]
[1749483677919,0.04892713,154.94,154.91,0.04271198]
[1749483678112,0.04892713,154.94,154.92,6.4515]
[1749483678419,0.04892713,154.94,154.91,0.04271198]
[1749483679823,0.04892713,154.94,154.93,6.4514]
[1749483687419,5.26657522,155.0,154.99,6.4489]
[1749483687621,14.0,155.06,154.99,38.97484822]
[1749483687822,4.7057895,155.05,155.01,6.21484822]
[1749483688030,5.26390452,155.06,155.01,6.21484822]
[1749483688328,4.70651998,155.05,155.01,6.21484822]
[1749483688528,0.04648228,155.05,155.04,6.4468]
[1749483719242,0.04648228,155.05,155.04,11.39586951]
[1749483720651,4.99555179,155.05,155.03,6.4472]
[1749483720945,4.99555179,155.05,155.02,32.7]
[1749483721142,4.94906951,155.04,155.02,32.7]
[1749483721342,7.78365183,155.05,155.02,32.7]
[1749483721549,0.04648228,155.05,155.02,32.7]
[1749483722245,0.04648228,155.05,155.04,6.4469]
[1749483724449,0.04648228,155.05,155.02,32.7]
[1749483724648,7.78365183,155.05,155.01,0.04393864]
[1749483724850,2.1926,155.04,155.01,32.72393864]
[1749483725050,8.6395,155.04,155.02,6.4477]
[1749483725244,2.1926,155.04,155.02,6.4477]
[1749483725444,2.1926,155.04,155.01,32.72393864]
[1749483725947,2.1926,155.04,155.01,39.17183864]
[1749483726149,4.3036,155.04,155.01,39.17183864]
[1749483726443,10.7507,155.04,155.01,39.17183864]
[1749483727549,6.4475,155.03,155.01,32.72393864]
[1749483728346,21.73716955,155.03,155.01,0.04393864]
[1749483728543,2.2863,155.02,155.01,0.04393864]
[1749483731054,2.2863,155.02,155.01,6.49213864]
[1749483731254,7.02822076,155.02,155.01,6.49213864]
[1749483731456,4.74192067,155.02,155.01,0.04393864]
[1749483731653,4.3036,155.04,155.01,0.04393864]
[1749483731854,4.74178377,155.03,155.01,0.04393864]
[1749483732156,9.5833014,155.04,155.01,0.04393864]
[1749483732157,4.3036,155.04,155.01,6.49173864]
[1749483732456,4.74178226,155.03,155.01,0.04393864]
[1749483732649,4.74178226,155.02,155.01,0.04393864]
[1749483732853,10.7506,155.04,155.02,6.4477]
[1749483733249,4.73282961,155.03,155.02,6.4477]
[1749483733455,4.7324502,155.03,155.02,6.4477]
[1749483733756,10.7507,155.04,155.01,6.49183864]
[1749483734148,4.73245545,155.03,155.01,6.49183864]
[1749483734355,4.73245545,155.02,155.01,6.49183864]
[1749483734856,10.7507,155.04,155.01,6.49183864]
[1749483735049,11.17346317,155.03,155.01,6.49183864]
[1749483735250,4.72616317,155.02,155.01,6.49183864]
[1749483735452,6.4473,155.03,155.01,6.49183864]
[1749483735655,4.72616317,155.02,155.01,6.49183864]
[1749483736457,4.72615915,155.02,155.01,6.49183864]
[1749483736660,4.73063558,155.02,155.01,6.49183864]
[1749483737055,0.04648228,155.05,155.01,0.04393864]
[1749483737355,5.3326275,155.05,155.01,0.04393864]
[1749483737559,4.73061766,155.04,155.03,6.4471]
[1749483738256,5.3324693,155.05,155.03,6.4471]
[1749483738452,4.72330959,155.04,155.03,6.4471]
[1749483738659,4.72331043,155.04,155.03,6.4471]
[1749483738851,4.72331045,155.04,155.03,6.4471]
[1749483739056,4.72331003,155.04,155.01,0.04393864]
[1749483739255,5.3324693,155.05,155.01,0.04393864]
[1749483739452,4.72331006,155.04,155.01,0.04393864]
[1749483739655,5.3324693,155.05,155.03,6.4469]
[1749483739854,4.72331007,155.04,155.03,6.4469]
[1749483740358,4.72331007,155.04,155.01,0.04393864]
[1749483740359,5.3324693,155.05,155.04,6.4469]
[1749483740560,0.04648228,155.05,155.04,6.4469]
[1749483740759,4.77066874,155.05,155.04,6.4469]
[1749483741150,0.04648228,155.05,155.04,6.4469]
[1749483741451,10.0575425,155.05,155.03,6.4471]
[1749483741655,5.33334969,155.05,155.03,6.4471]
[1749483741857,5.33334969,155.05,155.04,6.4469]
[1749483742053,0.04648228,155.05,155.04,6.4469]
[1749483742559,4.76695979,155.05,155.04,6.4469]
[1749483742950,4.771424,155.05,155.04,6.4469]
[1749483743151,16.50518881,155.05,155.03,6.4471]
[1749483743350,0.04648228,155.05,155.01,0.04393864]
[1749483744352,0.04648228,155.05,155.04,6.4469]
[1749483744858,4.7745699,155.05,155.04,6.4469]
[1749483745255,4.77457812,155.05,155.04,6.4469]
[1749483745457,0.04648228,155.05,155.04,6.4469]
[1749483751260,4.80460189,155.05,155.04,6.4469]
[1749483751466,4.80460202,155.05,155.04,6.4469]
[1749483751769,4.78906552,155.05,155.04,6.4469]
[1749483751963,4.7890628,155.05,155.04,6.4469]
[1749483752158,0.04648228,155.05,155.04,6.4469]
[1749483752664,4.79353588,155.05,155.04,6.4469]
[1749483753156,0.04648228,155.05,155.04,6.4469]
[1749483753456,4.79366391,155.05,155.04,6.4469]
[1749483753660,0.04648228,155.05,155.04,6.4469]
[1749483754164,4.79366226,155.05,155.04,6.4469]
[1749483754367,4.79366227,155.05,155.04,6.4469]
[1749483754566,4.79366226,155.05,155.04,6.4469]
[1749483754868,4.79366383,155.05,155.04,6.4469]
[1749483755068,0.04648228,155.05,155.04,6.4469]
[1749483755269,4.79366897,155.05,155.04,6.4469]
[1749483755470,4.7936629,155.05,155.04,6.4469]
[1749483755665,4.79366499,155.05,155.04,6.4469]
[1749483755866,4.793665,155.05,155.04,6.4469]
[1749483756663,4.79366549,155.05,155.04,6.4469]
[1749483757262,4.79366549,155.05,155.02,32.68]
[1749483757263,15.04410618,155.05,155.02,32.68]
[1749483757465,0.04648228,155.05,155.02,37.63007672]
[1749483757666,4.74718847,155.04,155.03,6.4474]
[1749483758068,4.74718846,155.04,155.02,37.63007672]
[1749483758269,0.04648228,155.05,155.04,6.447]
[1749483758570,4.79366865,155.05,155.04,6.447]
[1749483758771,0.04648228,155.05,155.04,6.447]
[1749483759275,4.79801457,155.05,155.04,6.447]
[1749483759969,15.05067968,155.05,155.01,0.04393864]
[1749483760173,4.95007672,155.02,155.01,0.04393864]
[1749483760379,15.00544333,155.02,154.98,6.4493]
[1749483760673,4.95007672,155.0,154.97,32.66]
[1749483760875,4.75159885,154.99,154.98,6.4495]
[1749483761575,4.75160251,154.99,154.98,6.4495]
[1749483761876,4.75147602,154.99,154.98,6.4495]
[1749483762065,0.04963371,155.0,154.97,32.70130656]
[1749483762272,0.04963371,155.0,154.99,6.4491]
[1749483762472,4.79661492,155.0,154.99,6.4491]
[1749483762676,0.04963371,155.0,154.99,6.4491]
[1749483765976,0.04963371,155.0,154.99,14.18679176]
[1749483766572,7.73769176,155.06,154.99,7.73769176]
[1749483766774,5.32385261,155.05,154.99,7.73769176]
[1749483767070,4.74453246,155.04,155.03,6.447]
[1749483767271,5.32356922,155.05,155.03,6.447]
[1749483767472,7.77902836,155.06,155.03,6.447]
[1749483767674,5.32356922,155.05,155.03,6.447]
[1749483767872,4.73570025,155.04,155.03,6.447]
[1749483768074,4.73570705,155.04,155.03,6.447]
[1749483768473,4.73570663,155.04,155.03,6.447]
[1749483768669,14.22522836,155.06,155.02,39.15586473]
[1749483768873,5.32427003,155.05,155.02,32.70816473]
[1749483769080,4.73570578,155.04,155.03,6.4472]
[1749483769380,4.72571092,155.04,155.03,6.4472]
[1749483769574,10.05011735,155.04,155.03,6.4472]
[1749483769879,10.05012243,155.04,155.03,6.4472]
[1749483770182,10.05012245,155.04,155.03,6.4472]
[1749483770381,10.05012243,155.04,155.03,6.4472]
[1749483770679,10.05011905,155.04,155.03,6.4472]
[1749483770980,5.32440643,155.04,155.03,6.4472]
[1749483771173,5.33302788,155.04,155.03,6.4472]
[1749483771370,14.22522836,155.06,155.03,6.4472]
[1749483771573,10.05852653,155.05,155.03,6.4472]
[1749483771779,5.33324996,155.04,155.02,39.15576473]
[1749483771981,7.77902836,155.06,155.02,32.70816473]
[1749483772284,10.05898171,155.05,155.02,32.70816473]
[1749483772577,10.07241659,155.04,155.02,39.15596473]
[1749483772771,4.73903117,155.03,155.02,39.15596473]
[1749483773281,7.73769176,155.04,155.02,32.70816473]
[1749483773477,10.07532946,155.03,155.02,32.70816473]
[1749483773676,10.07531766,155.03,155.02,32.70816473]
[1749483774181,10.07532392,155.03,155.02,32.70816473]
[1749483774382,10.07531881,155.03,155.02,32.70816473]
[1749483774586,10.07532513,155.03,155.02,32.70816473]
[1749483774785,10.07531879,155.03,155.02,39.15596473]
[1749483775087,5.33376291,155.03,155.02,39.15596473]
[1749483775279,10.07734682,155.03,155.02,39.15596473]
[1749483775481,5.33376291,155.03,155.02,39.15596473]
[1749483775782,10.0773459,155.03,155.02,6.49596473]
[1749483775985,10.07734354,155.03,155.02,6.49596473]
[1749483776186,5.33376291,155.03,155.02,6.49596473]
[1749483776486,10.07734684,155.03,155.02,0.04816473]
[1749483776686,5.33376291,155.03,155.02,0.04816473]
[1749483776986,10.0639127,155.03,155.02,0.04816473]
[1749483777181,5.33376291,155.03,155.02,0.04816473]
[1749483777378,10.06239407,155.03,155.02,6.49596473]
[1749483777573,10.06239242,155.03,155.02,6.49596473]
[1749483777778,10.06239244,155.03,155.02,6.49596473]
[1749483778078,5.33376291,155.03,155.02,6.49596473]
[1749483778978,10.06226752,155.03,155.02,6.49596473]
[1749483779688,5.33376291,155.03,155.02,6.49596473]
[1749483779883,10.06226752,155.03,155.02,6.49596473]
[1749483780685,0.0413366,155.06,155.04,6.447]
[1749483780883,10.0571613,155.05,155.02,0.04816473]
[1749483781086,10.0571613,155.04,155.02,0.04816473]
[1749483781278,4.72848465,155.03,155.02,0.04816473]
[1749483781684,7.73769176,155.05,155.02,0.04816473]
[1749483781989,10.05757892,155.04,155.02,0.04816473]
[1749483782289,4.72849442,155.03,155.02,0.04816473]
[1749483782487,4.72849104,155.03,155.02,0.04816473]
[1749483782684,4.72849104,155.03,155.02,6.49596473]
[1749483782888,7.73769176,155.05,155.02,6.49596473]
[1749483783091,5.32898606,155.04,155.02,0.04816473]
[1749483783285,14.18449176,155.05,155.02,0.04816473]
[1749483783489,10.05641786,155.04,155.02,0.04816473]
[1749483783681,14.18449176,155.05,155.03,6.4474]
[1749483783886,5.32896139,155.04,155.03,6.4474]
[1749483784189,10.05617497,155.04,155.02,0.04816473]
[1749483784389,14.18449176,155.05,155.02,6.49576473]
[1749483784592,10.05627219,155.04,155.02,6.49576473]
[1749483784787,6.447,155.04,155.02,6.49576473]
[1749483785088,4.72721011,155.03,155.02,6.49576473]
[1749483785287,4.72721365,155.03,155.02,6.49576473]
[1749483785489,16.50712295,155.03,155.02,0.04816473]
[1749483785689,19.51754803,155.03,155.02,0.04816473]
[1749483785890,24.24477735,155.03,155.02,0.04816473]
[1749483786092,24.24477484,155.03,155.02,0.04816473]
[1749483786896,19.51754803,155.03,155.02,0.04816473]
[1749483787188,24.24639711,155.03,155.02,0.04816473]
[1749483787381,19.51754803,155.03,155.02,0.04816473]
[1749483787587,24.24639605,155.03,155.02,0.04816473]
[1749483787787,24.24639606,155.03,155.02,0.04816473]
[1749483788188,19.51754803,155.03,155.02,0.04816473]
[1749483788391,6.4487,155.0,154.99,32.66]
[1749483788692,19.51884803,155.0,154.98,6.4495]
[1749483788896,4.73128855,154.99,154.98,6.4495]
[1749483789093,14.18639176,155.0,154.98,6.4495]
[1749483789490,4.73128792,154.99,154.98,6.4495]
[1749483789891,4.73141438,154.99,154.98,6.4495]
[1749483790098,7.73769176,155.0,154.99,6.4491]
[1749483790298,17.79138926,155.0,154.99,6.4491]
[1749483790498,17.79139175,155.0,154.99,6.4491]
[1749483790688,13.05997447,155.0,154.99,6.4491]
[1749483790892,17.79138929,155.0,154.99,6.4491]
[1749483791097,17.79138927,155.0,154.99,6.4491]
[1749483791294,13.05997447,155.0,154.99,6.4491]
[1749483791493,17.79315974,155.0,154.99,6.4491]
[1749483791899,17.79315973,155.0,154.99,6.4491]
[1749483792099,13.05997447,155.0,154.99,6.4491]
[1749483792300,12.45296487,155.0,154.99,6.4491]